fUST/lending_fUST_20260616
["ID","MTS","AMOUNT","RATE_DAILY","PERIOD"]
[425214178,1781599846000,-1205.41440414,0.000196,2]
[425214174,1781599846000,-500.0,0.00019599,2]
[425214182,1781599847000,-8341.22721738,0.000196,2]
[425214340,1781600434000,-9275.59723782,0.0001,2]
[425214341,1781600489000,-604.53702221,0.000149,2]
[425214342,1781600506000,-300.0,0.00015999,2]
[425214344,1781600522000,-156.351,0.00016,2]
[425214345,1781600539000,-3000.0,0.000161,2]
[425214346,1781600556000,-3000.0,0.0001611,2]
[425214362,1781601032000,-2805.34792673,0.0001612,2]
[425214363,1781601032000,-194.65207327,0.0001612,2]
[425214366,1781601032000,-2970.85873101,0.0001613,2]
[425214367,1781601032000,-2642.89978868,0.0001614,2]
[425214364,1781601032000,-500.0,0.00016129,2]
[425214365,1781601032000,-29.14126899,0.0001613,2]
[425214399,1781601040000,-357.10021132,0.0001614,2]
[425214400,1781601040000,-3843.981499,0.0001615,2]
[425214409,1781601041000,-1000.0,0.0001888,2]
[425214410,1781601041000,-342.49705085,0.0001888,2]
[425214404,1781601041000,-622.29736246,0.00016403,2]
[425214407,1781601041000,-1214.7270139,0.00017948,2]
[425214401,1781601041000,-186.0,0.00016152,2]
[425214405,1781601041000,-160.0,0.00017174,2]
[425214406,1781601041000,-157.0,0.00017918,3]
[425214403,1781601041000,-543.41,0.00016402,2]
[425214402,1781601041000,-445.0,0.00016152,2]
[425214411,1781601041000,-657.50294915,0.0001888,2]
[425214412,1781601041000,-160.0,0.0001914,2]
[425214413,1781601041000,-160.0,0.0001914,2]
[425214415,1781601041000,-186.0,0.00019152,2]
[425214418,1781601041000,-299.0788211,0.00019243,2]
[425214417,1781601041000,-177.2318944,0.00019243,2]
[425214414,1781601041000,-769.86702256,0.0001914,2]
[425214416,1781601041000,-445.0,0.00019152,2]
[425214419,1781601041000,-310.57119778,0.000194,2]
[425214408,1781601041000,-1000.0,0.0001888,2]
[425214482,1781601046000,-318.64496818,0.000194,2]
[425214485,1781601046000,-15040.14023633,0.000194,2]
[425214486,1781601046000,-1408.53914278,0.000194,2]
[425214484,1781601046000,-1556.06370895,0.000194,2]
[425214503,1781601047000,-500.0,0.00019499,2]
[425214497,1781601047000,-1000.0,0.00019,2]
[425214499,1781601047000,-181.0801015,0.00019488,2]
[425214498,1781601047000,-3042.05453956,0.000194,2]
[425214500,1781601047000,-434.0608296,0.00019499,2]
[425214502,1781601047000,-235.67443921,0.00019499,2]
[425214501,1781601047000,-175.696,0.00019499,2]
[425214506,1781601047000,-500.0,0.00019499,2]
[425214507,1781601047000,-80.86704253,0.00019499,2]
[425214505,1781601047000,-500.0,0.00019499,2]
[425214509,1781601047000,-500.0,0.00019499,2]
[425214510,1781601047000,-500.0,0.00019499,2]
[425214508,1781601047000,-419.13295747,0.00019499,2]
[425214504,1781601047000,-500.0,0.00019499,2]
[425214512,1781601048000,-122.59264158,0.00019499,2]
[425214511,1781601048000,-372.57204594,0.00019499,2]
[425214555,1781602232000,-240.72988083,0.00016491,2]
[425214554,1781602232000,-186.0,0.00016491,2]
[425214589,1781602238000,-769.86702256,0.00017999,2]
[425214587,1781602238000,-160.0,0.00017999,2]
[425214585,1781602238000,-162.0,0.00017973,3]
[425214591,1781602238000,-224.3091158,0.00018077,2]
[425214584,1781602238000,-166.18250002,0.000174,2]
[425214574,1781602238000,-204.27011917,0.00016491,2]
[425214580,1781602238000,-160.0,0.00017198,2]
[425214578,1781602238000,-160.0,0.00017198,2]
[425214576,1781602238000,-793.99,0.00016491,2]
[425214593,1781602238000,-911.0452604,0.00018077,2]
[425214582,1781602238000,-166.18250002,0.000172,2]
[425214597,1781602238000,-652.30029374,0.0001888,2]
[425214619,1781602238000,-503.3729328,0.000196,2]
[425214603,1781602238000,-300.0,0.00019,2]
[425214622,1781602238000,-218.0674398,0.00019626,2]
[425214620,1781602238000,-3243.3355788,0.000196,2]
[425214611,1781602238000,-197.45109245,0.00019599,2]
[425214605,1781602238000,-186.0,0.00019491,2]
[425214607,1781602238000,-445.0,0.00019491,2]
[425214617,1781602238000,-432.0,0.00019599,2]
[425214615,1781602238000,-648.87004874,0.00019599,2]
[425214613,1781602238000,-197.7745763,0.00019599,2]
[425214601,1781602238000,-800.0,0.00019,2]
[425214595,1781602238000,-347.69970626,0.0001888,2]
[425214609,1781602238000,-360.48336041,0.00019599,2]
[425214599,1781602238000,-1000.0,0.00019,2]
[425214663,1781602246000,-500.0,0.00019626,2]
[425214667,1781602246000,-500.0,0.00019626,2]
[425214673,1781602246000,-254.19429411,0.00019626,2]
[425214670,1781602246000,-151.5,0.00019626,2]
[425214668,1781602246000,-536.55539808,0.00019626,2]
[425214666,1781602246000,-500.0,0.00019626,2]
[425214657,1781602246000,-1000.0,0.000195,2]
[425214661,1781602246000,-500.0,0.00019626,2]
[425214660,1781602246000,-500.0,0.00019626,2]
[425214656,1781602246000,-1000.0,0.00019,2]
[425214658,1781602246000,-281.9325602,0.00019626,2]
[425214669,1781602246000,-151.5,0.00019626,2]
[425214655,1781602246000,-1293.917796,0.000185,2]
[425214659,1781602246000,-500.0,0.00019626,2]
[425214665,1781602246000,-500.0,0.00019626,2]
[425214662,1781602246000,-500.0,0.00019626,2]
[425214672,1781602246000,-151.5,0.00019626,2]
[425214675,1781602246000,-500.0,0.00019699,2]
[425214684,1781602246000,-500.0,0.00019699,2]
[425214686,1781602246000,-500.0,0.00019699,2]
[425214681,1781602246000,-500.0,0.00019699,2]
[425214682,1781602246000,-471.18751251,0.00019699,2]
[425214683,1781602246000,-500.0,0.00019699,2]
[425214678,1781602246000,-500.0,0.00019699,2]
[425214685,1781602246000,-347.63800779,0.00019699,2]
[425214679,1781602246000,-476.44077291,0.00019699,2]
[425214676,1781602246000,-500.0,0.00019699,2]
[425214677,1781602246000,-224.72727582,0.00019699,2]
[425214674,1781602246000,-503.37293276,0.00019675,2]
[425214664,1781602246000,-500.0,0.00019626,2]
[425214671,1781602246000,-151.5,0.00019626,2]
[425214680,1781602246000,-500.0,0.00019699,2]
[425214687,1781602247000,-500.0,0.00019699,2]
[425214688,1781602247000,-500.0,0.00019699,2]
[425214690,1781602247000,-8794.11959548,0.000197,2]
[425214689,1781602247000,-96575.0578428,0.000197,2]
[425214694,1781602345000,171.23637005,0.00023081,120]
[425214693,1781602345000,171.23637005,0.00023081,120]
[425214728,1781603433000,-254.7419739,0.00018571,2]
[425214734,1781603433000,-302.02375968,0.000194,2]
[425214735,1781603433000,-5315.47262049,0.000194,2]
[425214723,1781603433000,-1843.431,0.00016828,2]
[425214725,1781603433000,-445.0,0.00016828,2]
[425214726,1781603433000,-155.0588701,0.00017547,2]
[425214738,1781603433000,-673.65800602,0.000194,2]
[425214731,1781603433000,-1466.83267694,0.00019388,2]
[425214729,1781603433000,-801.97049581,0.00019388,2]
[425214730,1781603433000,-323.06873358,0.00019388,2]
[425214732,1781603433000,-500.0,0.00019399,2]
[425214736,1781603433000,-504.50874847,0.000194,2]
[425214737,1781603433000,-670.94,0.000194,2]
[425214727,1781603433000,-1000.0,0.00018271,2]
[425214724,1781603433000,-186.134,0.00016828,2]
[425214754,1781603438000,-1609.06079025,0.000194,2]
[425214760,1781603438000,-8295.61258303,0.000195,2]
[425214758,1781603438000,-7607.6676741,0.00019499,2]
[425214759,1781603438000,-187.112,0.00019499,2]
[425214757,1781603438000,-181.0801015,0.00019488,2]
[425214755,1781603438000,-3585.36740699,0.000194,2]
[425214756,1781603438000,-85971.14005094,0.000194,2]
[425214771,1781603446000,-579.26837233,0.000195,2]
[425214770,1781603446000,-985.83162767,0.000195,2]
[425214772,1781603447000,-420.73162767,0.000195,2]
[425214778,1781603447000,-119.90149515,0.00019596,2]
[425214773,1781603447000,-302.02375965,0.00019525,2]
[425214775,1781603447000,-165.8,0.0001959,3]
[425214776,1781603447000,-497.44,0.0001959,3]
[425214777,1781603447000,-160.0,0.00019596,2]
[425214774,1781603447000,-158.23,0.00019576,2]
[425214788,1781603448000,-225.65839137,0.00019626,2]
[425214789,1781603448000,-49.66844658,0.00019626,2]
[425214783,1781603448000,-168.2318369,0.00019599,2]
[425214784,1781603448000,-683.2839453,0.00019599,2]
[425214786,1781603448000,-1153.54675332,0.00019626,2]
[425214785,1781603448000,-355.99423734,0.00019626,2]
[425214782,1781603448000,-40.09850485,0.00019596,2]
[425214787,1781603448000,-323.51788434,0.00019626,2]
[425214794,1781603528000,185.81344747,0.00023081,120]
[425214808,1781603855000,1000.0,7.6e-05,2]
[425214809,1781603860000,58300.0,0.00023081,30]
[425214851,1781604632000,-433.45811007,0.00015985,2]
[425214901,1781604640000,-430.5498,0.00019197,2]
[425214890,1781604640000,-241.61900772,0.00019056,2]
[425214885,1781604640000,-500.0,0.00018999,2]
[425214893,1781604640000,-497.44,0.0001909,3]
[425214887,1781604640000,-58893.66401334,0.00019,2]
[425214894,1781604640000,-180.727,0.0001909,2]
[425214889,1781604640000,-241.61900772,0.00019034,2]
[425214891,1781604640000,-241.61900772,0.00019078,2]
[425214892,1781604640000,-165.8,0.0001909,3]
[425214897,1781604640000,-500.0,0.00019099,2]
[425214907,1781604640000,-500.0,0.00019199,2]
[425214896,1781604640000,-500.0,0.00019099,2]
[425214898,1781604640000,-500.0,0.00019099,2]
[425214900,1781604640000,-462.0,0.00019178,2]
[425214899,1781604640000,-628.53701115,0.00019099,2]
[425214895,1781604640000,-228.01142484,0.00019099,2]
[425214886,1781604640000,-257.54413905,0.00018999,2]
[425214881,1781604640000,-241.61900772,0.0001899,2]
[425214874,1781604640000,-199.1538993,0.00018137,2]
[425214867,1781604640000,-2538.0,0.00016,2]
[425214866,1781604640000,-1367.1562752,0.00015985,2]
[425214868,1781604640000,-3000.0,0.000161,2]
[425214869,1781604640000,-3000.0,0.0001611,2]
[425214870,1781604640000,-151.5,0.00016827,3]
[425214872,1781604640000,-303.998,0.00016828,2]
[425214879,1781604640000,-2267.88791803,0.00018912,2]
[425214884,1781604640000,-500.0,0.00018999,2]
[425214882,1781604640000,-434.0608296,0.00018999,2]
[425214875,1781604640000,-352.23864527,0.00018645,2]
[425214876,1781604640000,-632.87864416,0.00018645,2]
[425214871,1781604640000,-445.0,0.00016828,2]
[425214883,1781604640000,-500.0,0.00018999,2]
[425214878,1781604640000,-123515.97652926,0.000189,2]
[425214880,1781604640000,-4774.94236706,0.00018912,2]
[425214877,1781604640000,-987.88400861,0.00018645,2]
[425214902,1781604640000,-500.0,0.00019199,2]
[425214903,1781604640000,-500.0,0.00019199,2]
[425214888,1781604640000,-241.61900772,0.00019012,2]
[425214905,1781604640000,-500.0,0.00019199,2]
[425214925,1781604640000,-1617.5894217,0.00019718,2]
[425214929,1781604640000,-186.0,0.00019828,2]
[425214923,1781604640000,-1035.25722989,0.00019626,2]
[425214926,1781604640000,-158.76,0.00019752,2]
[425214928,1781604640000,-445.0,0.00019828,2]
[425214927,1781604640000,-200.0,0.00019819,2]
[425214934,1781604640000,-209.5738857,0.000199,2]
[425214924,1781604640000,-500.0,0.00019626,2]
[425214935,1781604640000,-2792.72030678,0.00019903,2]
[425214941,1781604640000,-2185.8378139,0.0002,2]
[425214936,1781604640000,-496.98259668,0.00019994,2]
[425214937,1781604640000,-505032.54420352,0.0002,2]
[425214939,1781604640000,-1635.34470775,0.0002,3]
[425214940,1781604640000,-10044.0,0.0002,2]
[425214904,1781604640000,-194.72,0.00019199,2]
[425214942,1781604640000,-208.89923465,0.0002,2]
[425214938,1781604640000,-463.0,0.0002,2]
[425214922,1781604640000,-293.27187118,0.00019626,2]
[425214933,1781604640000,-209.06332485,0.000199,2]
[425214932,1781604640000,-206.91536897,0.000199,2]
[425214906,1781604640000,-500.0,0.00019199,2]
[425214908,1781604640000,-535.97380855,0.00019199,2]
[425214930,1781604640000,-160.0,0.0001987,3]
[425214911,1781604640000,-258.21945307,0.00019199,2]
[425214912,1781604640000,-160.0,0.00019296,2]
[425214910,1781604640000,-500.0,0.00019199,2]
[425214913,1781604640000,-160.0,0.00019296,2]
[425214919,1781604640000,-160.0,0.00019591,2]
[425214909,1781604640000,-500.0,0.00019199,2]
[425214915,1781604640000,-520.19816249,0.00019499,2]
[425214917,1781604640000,-168.2318369,0.00019507,2]
[425214931,1781604640000,-193.54722119,0.000199,2]
[425214921,1781604640000,-276.1014426,0.00019626,2]
[425214914,1781604640000,-500.0,0.00019499,2]
[425214916,1781604640000,-177.2318941,0.00019507,2]
[425214918,1781604640000,-2267.88791797,0.00019546,2]
[425214920,1781604640000,-582.33219181,0.00019626,2]
[425214943,1781604641000,-23352.88256443,0.0002,2]
[425214944,1781604641000,-8246.18349024,0.0002,2]
[425215008,1781604647000,-600.0,0.00020399,2]
[425215013,1781604647000,-331.6,0.0002046,3]
[425215001,1781604647000,-160.0,0.0002023,5]
[425214999,1781604647000,-20020.00001611,0.000202,2]
[425215004,1781604647000,-163.26,0.00020314,2]
[425215006,1781604647000,-521.37221543,0.00020322,2]
[425215009,1781604647000,-160.0,0.0002041,6]
[425215014,1781604647000,-1883.42,0.00020547,2]
[425215037,1781604647000,-455.44,0.000208,2]
[425215011,1781604647000,-392.75347514,0.0002045,2]
[425215020,1781604647000,-160.0,0.00020771,8]
[425215026,1781604647000,-340.72722,0.00020786,2]
[425215028,1781604647000,-190.97162461,0.000208,2]
[425215024,1781604647000,-174.182421,0.00020776,2]
[425215029,1781604647000,-578.32,0.000208,2]
[425215033,1781604647000,-2295.4989,0.000208,2]
[425215018,1781604647000,-1407.30076752,0.0002061,2]
[425215035,1781604647000,-237.45270247,0.000208,2]
[425215016,1781604647000,-160.0,0.00020591,7]
[425215003,1781604647000,-1883.42,0.00020273,2]
[425214970,1781604647000,-151.56213578,0.0002,2]
[425214992,1781604647000,-160.0,0.00020191,2]
[425215022,1781604647000,-331.806587,0.00020776,2]
[425214972,1781604647000,-160.0,0.0002005,4]
[425214969,1781604647000,-17680.68305842,0.0002,2]
[425214961,1781604647000,-1568.62624257,0.0002,2]
[425214965,1781604647000,-261.20292371,0.0002,2]
[425214963,1781604647000,-1283.43094321,0.0002,3]
[425214967,1781604647000,-1238.79707629,0.0002,2]
[425214974,1781604647000,-430.5498,0.00020053,4]
[425214997,1781604647000,-208.32417985,0.00020196,2]
[425214976,1781604647000,-160.94,0.0002011,2]
[425214987,1781604647000,-246.907907,0.00020153,2]
[425214980,1781604647000,-160.0,0.00020134,2]
[425214981,1781604647000,-540.353466,0.00020134,2]
[425214983,1781604647000,-920.706933,0.00020134,2]
[425214996,1781604647000,-1354.580674,0.00020191,2]
[425214988,1781604647000,-2267.88791797,0.00020181,2]
[425214985,1781604647000,-391.345651,0.00020153,2]
[425214994,1781604647000,-757.290337,0.00020191,2]
[425214978,1781604647000,-220.00674,0.00020115,2]
[425215044,1781604647000,-300.0,0.00020822,6]
[425214990,1781604647000,-202.76164,0.00020181,2]
[425215031,1781604647000,-578.32,0.000208,2]
[425215095,1781604647000,-1832.58076033,0.0002105,2]
[425215085,1781604647000,-7158.66622482,0.00021,2]
[425215092,1781604647000,-3000.0,0.0002102,2]
[425215091,1781604647000,-3000.0,0.0002101,2]
[425215087,1781604647000,-281.10461775,0.00021,2]
[425215100,1781604647000,-2888.59899374,0.0002107,2]
[425215097,1781604647000,-2409.49330568,0.0002106,2]
[425215099,1781604647000,-111.40100626,0.0002107,2]
[425215094,1781604647000,-3000.0,0.0002104,2]
[425215101,1781604647000,-3000.0,0.0002108,2]
[425215102,1781604647000,-3000.0,0.0002109,2]
[425215106,1781604647000,-3000.0,0.0002111,2]
[425215103,1781604647000,-1883.42,0.00021095,2]
[425215107,1781604647000,-3000.0,0.0002112,2]
[425215109,1781604647000,-198.006066,0.0002112,2]
[425215104,1781604647000,-3000.0,0.000211,2]
[425215110,1781604647000,-2321.3319063,0.0002113,2]
[425215040,1781604647000,-1883.42,0.00020821,2]
[425215098,1781604647000,-590.50669432,0.0002106,2]
[425215088,1781604647000,-10000.0,0.00021,2]
[425215096,1781604647000,-1167.41923967,0.0002105,2]
[425215093,1781604647000,-3000.0,0.0002103,2]
[425215042,1781604647000,-1000.0,0.00020822,5]
[425215090,1781604647000,-3000.0,0.00021,2]
[425215045,1781604647000,-259.87585099,0.000209,2]
[425215049,1781604647000,-4000.0,0.00021,2]
[425215047,1781604647000,-160.0,0.00020951,9]
[425215057,1781604647000,-5832.87074756,0.00021,2]
[425215052,1781604647000,-4026.02131997,0.00021,2]
[425215063,1781604647000,-24600.54861905,0.00021,2]
[425215050,1781604647000,-10000.0,0.00021,5]
[425215067,1781604647000,-5453.058894,0.00021,2]
[425215038,1781604647000,-2267.88791797,0.00020815,2]
[425215061,1781604647000,-6967.4,0.00021,2]
[425215083,1781604647000,-13176.1188946,0.00021,2]
[425215055,1781604647000,-1281.60657881,0.00021,2]
[425215065,1781604647000,-4507.12903117,0.00021,2]
[425215071,1781604647000,-379.01511469,0.00021,2]
[425215069,1781604647000,-13270.57507934,0.00021,2]
[425215074,1781604647000,-1561.04830888,0.00021,2]
[425215081,1781604647000,-628.1247688,0.00021,2]
[425215059,1781604647000,-12599.18063339,0.00021,2]
[425215119,1781605269000,194.6,0.00024658,120]
[425215120,1781605290000,300.0,0.00024658,120]
[425215140,1781605714000,312.76172502,0.000102,6]
[425215171,1781605831000,-700.0,0.0001688,13]
[425215187,1781605831000,-322.46584336,0.00017051,13]
[425215185,1781605831000,-4300.0,0.0001688,13]
[425215449,1781605838000,-300.0,0.00017923,2]
[425215427,1781605838000,-1797.19546501,0.00017051,13]
[425215432,1781605838000,-2567.72088019,0.00017051,13]
[425215434,1781605838000,-186.0,0.00017573,2]
[425215435,1781605838000,-300.0,0.00017923,2]
[425215437,1781605838000,-300.0,0.00017923,2]
[425215440,1781605838000,-300.0,0.00017923,2]
[425215439,1781605838000,-300.0,0.00017923,2]
[425215433,1781605838000,-445.0,0.00017573,2]
[425215436,1781605838000,-300.0,0.00017923,2]
[425215438,1781605838000,-300.0,0.00017923,2]
[425215443,1781605838000,-300.0,0.00017923,2]
[425215444,1781605838000,-300.0,0.00017923,2]
[425215450,1781605838000,-794.0544808,0.00018244,2]
[425215447,1781605838000,-300.0,0.00017923,2]
[425215454,1781605838000,-42111.95324461,0.000187,2]
[425215455,1781605838000,-1387.56261895,0.000187,2]
[425215452,1781605838000,-502.04168895,0.00018699,2]
[425215451,1781605838000,-652.4,0.0001869,2]
[425215457,1781605838000,-6929.50478851,0.000187,2]
[425215456,1781605838000,-14173.16744147,0.000187,2]
[425215453,1781605838000,-159.60799739,0.00018699,2]
[425215446,1781605838000,-300.0,0.00017923,2]
[425215441,1781605838000,-300.0,0.00017923,2]
[425215448,1781605838000,-300.0,0.00017923,2]
[425215445,1781605838000,-300.0,0.00017923,2]
[425215442,1781605838000,-300.0,0.00017923,2]
[425215474,1781605840000,-4610.28038666,0.000187,2]
[425215482,1781605843000,-1217.08291742,0.000187,2]
[425215481,1781605843000,-3278.99187919,0.000187,2]
[425215480,1781605843000,-4133.93835324,0.000187,2]
[425215491,1781605846000,-56203.23674744,0.000187,2]
[425215494,1781605910000,-358.64947627,0.00017694,14]
[425215495,1781605927000,-470.88010414,0.00018328,2]
[425215513,1781607032000,-482.84390297,0.00015437,2]
[425215515,1781607032000,-1463.7422276,0.00015437,2]
[425215514,1781607032000,-380.41330792,0.00015437,2]
[425215517,1781607032000,-1073.17704486,0.00015767,2]
[425215516,1781607032000,-1417.62216489,0.00015767,2]
[425215759,1781607039000,-581.80292413,0.00015767,2]
[425215757,1781607039000,-820.992352,0.00015767,2]
[425215840,1781607046000,-168.231837,0.0001866,2]
[425215833,1781607046000,-300.0,0.00017446,2]
[425215831,1781607046000,-300.0,0.00017446,2]
[425215823,1781607046000,-300.0,0.00017446,2]
[425215824,1781607046000,-300.0,0.00017446,2]
[425215825,1781607046000,-300.0,0.00017446,2]
[425215822,1781607046000,-300.0,0.00017446,2]
[425215821,1781607046000,-300.0,0.00017446,2]
[425215834,1781607046000,-300.0,0.00017446,2]
[425215820,1781607046000,-652.7317321,0.00017426,2]
[425215830,1781607046000,-300.0,0.00017446,2]
[425215829,1781607046000,-300.0,0.00017446,2]
[425215819,1781607046000,-813.82944252,0.00016249,2]
[425215828,1781607046000,-300.0,0.00017446,2]
[425215826,1781607046000,-300.0,0.00017446,2]
[425215817,1781607046000,-452.72586922,0.00015767,2]
[425215818,1781607046000,-2205.96662353,0.00015926,2]
[425215827,1781607046000,-300.0,0.00017446,2]
[425215841,1781607046000,-400.0,0.0001869,3]
[425215849,1781607046000,-342.78813007,0.00018952,2]
[425215835,1781607046000,-300.0,0.00017446,2]
[425215837,1781607046000,-600.0,0.00017794,2]
[425215860,1781607046000,-300.0,0.00020152,2]
[425215859,1781607046000,-476.05337869,0.00020152,2]
[425215858,1781607046000,-1000.0,0.00020059,5]
[425215845,1781607046000,-180.727,0.00018917,2]
[425215847,1781607046000,-1380.507213,0.00018952,2]
[425215850,1781607046000,-720.0,0.00019573,2]
[425215848,1781607046000,-1643.15432626,0.00018952,2]
[425215846,1781607046000,-883.52461632,0.00018952,2]
[425215852,1781607046000,-448.86111445,0.0001995,2]
[425215856,1781607046000,-157.66525988,0.00019967,2]
[425215854,1781607046000,-700.64414583,0.0001995,2]
[425215844,1781607046000,-160.0,0.00018894,2]
[425215838,1781607046000,-186.0,0.00017953,2]
[425215839,1781607046000,-1106.82073168,0.00018469,2]
[425215832,1781607046000,-300.0,0.00017446,2]
[425215836,1781607046000,-220.78060837,0.00017541,2]
[425215843,1781607046000,-160.0,0.00018894,2]
[425215842,1781607046000,-160.0,0.00018894,2]
[425215885,1781608232000,-457.72879637,9.9e-05,2]
[425215976,1781608240000,-267.77939956,9.9e-05,2]
[425216003,1781608243000,-300.0,0.00012239,2]
[425216006,1781608243000,-300.0,0.00012239,2]
[425216009,1781608243000,-300.0,0.00012239,2]
[425216002,1781608243000,-300.0,0.00012239,2]
[425215998,1781608243000,-3158.89426269,9.9e-05,2]
[425216001,1781608243000,-300.0,0.00012239,2]
[425216000,1781608243000,-10954.19314635,0.00012,2]
[425216007,1781608243000,-300.0,0.00012239,2]
[425216008,1781608243000,-300.0,0.00012239,2]
[425216005,1781608243000,-300.0,0.00012239,2]
[425215999,1781608243000,-1634.76791895,0.0001,2]
[425216010,1781608243000,-300.0,0.00012239,2]
[425216012,1781608243000,-300.0,0.00012239,2]
[425216011,1781608243000,-300.0,0.00012239,2]
[425216014,1781608243000,-300.0,0.00012239,2]
[425216013,1781608243000,-300.0,0.00012239,2]
[425216015,1781608243000,-300.0,0.00012239,2]
[425216017,1781608243000,-500.0,0.00013972,2]
[425216018,1781608243000,-388.3,0.00014246,2]
[425216019,1781608243000,-292.68453658,0.00017077,2]
[425216016,1781608243000,-500.0,0.00013698,2]
[425216004,1781608243000,-300.0,0.00012239,2]
[425216022,1781608244000,-445.0,0.00018098,2]
[425216023,1781608244000,-186.0,0.00018098,2]
[425216021,1781608244000,-334.49661324,0.00017999,2]
[425216020,1781608244000,-265.9812758,0.00017409,2]
[425216026,1781608244000,-166.0,0.00018641,2]
[425216027,1781608244000,-156.0,0.00018641,2]
[425216028,1781608244000,-342.76797647,0.00018877,2]
[425216024,1781608244000,-157.66525988,0.00018137,2]
[425216025,1781608244000,-512.4629589,0.00018331,2]
[425216029,1781608244000,-728.32301026,0.00018917,2]
[425216055,1781608246000,-326.52086955,0.00018952,2]
[425216051,1781608246000,-271.67698974,0.00018917,2]
[425216059,1781608246000,-692.01052072,0.00018952,2]
[425216053,1781608246000,-522.12830722,0.0001892,2]
[425216057,1781608246000,-384.45028929,0.00018952,2]
[425216062,1781608246000,-1920.32919499,0.00018952,2]
[425216068,1781608246000,-115.52359637,0.00019946,2]
[425216091,1781608246000,-957.94120009,0.00020152,2]
[425216061,1781608246000,-1230.24092572,0.00018952,2]
[425216066,1781608246000,-156.0,0.00019447,2]
[425216093,1781608246000,-114.96818363,0.00020163,2]
[425216085,1781608246000,-44.47640363,0.00019946,2]
[425216086,1781608246000,-160.0,0.00019946,2]
[425216089,1781608246000,-1000.0,0.00020059,5]
[425216087,1781608246000,-1568.62624157,0.0002,2]
[425216064,1781608246000,-166.0,0.00019447,2]
[425216125,1781608328000,155.54626134,9.9e-05,7]
[425216199,1781609432000,-76.52877541,0.00018364,2]
[425216193,1781609432000,-87.46021166,0.00018364,2]
[425216202,1781609432000,-223.47122459,0.00018364,2]
[425216204,1781609432000,-209.98688548,0.00018364,2]
[425216206,1781609432000,-90.01311452,0.00018364,2]
[425216214,1781609432000,-300.0,0.00018364,2]
[425216211,1781609432000,-300.0,0.00018364,2]
[425216213,1781609432000,-300.0,0.00018364,2]
[425216218,1781609432000,-236.02,0.00018721,2]
[425216220,1781609432000,-160.0,0.00018962,2]
[425216216,1781609432000,-300.0,0.00018364,2]
[425216208,1781609432000,-300.0,0.00018364,2]
[425216189,1781609432000,-300.0,0.00018364,2]
[425216191,1781609432000,-212.53978834,0.00018364,2]
[425216197,1781609432000,-300.0,0.00018364,2]
[425216185,1781609432000,-300.0,0.00018364,2]
[425216195,1781609432000,-300.0,0.00018364,2]
[425216184,1781609432000,-196.9114677,0.00018364,2]
[425216171,1781609432000,-416.25079156,0.00018005,2]
[425216173,1781609432000,-740.00140721,0.00018005,2]
[425216177,1781609432000,-67.5823323,0.00018364,2]
[425216179,1781609432000,-232.4176677,0.00018364,2]
[425216169,1781609432000,-204.69,0.00017997,2]
[425216168,1781609432000,-500.0,0.00013698,2]
[425216181,1781609432000,-103.0885323,0.00018364,2]
[425216175,1781609432000,-1155.09594657,0.00018005,2]
[425216221,1781609432000,-160.0,0.00018962,2]
[425216187,1781609432000,-300.0,0.00018364,2]
[425216223,1781609432000,-186.0,0.00018964,2]
[425216228,1781609432000,-1283.43094321,0.0002,3]
[425216225,1781609432000,-445.0,0.00018964,2]
[425216254,1781609432000,-160.0,0.00020569,2]
[425216253,1781609432000,-244.981617,0.00020569,2]